Name,Sub Group,Service Area,Expense Type,Narrative,Date,Transaction No,Amount,Supplier Name,Supplier Ref,Period,Year
Allerdale Borough Council,15903,Supplies & Services,Members Services,"Courses, Training & Seminars",20/06/2013,14849,-165.00,LAKES COLLEGE WEST CUMB,A00093,4,2013
Allerdale Borough Council,15704,Supplies & Services,Industrial Units,Mobile Phones,20/06/2013,14850,132.96,BRITISH TELECOMMUNICATIONS,X00004,4,2013
Allerdale Borough Council,15903,Supplies & Services,Members Services,"Courses, Training & Seminars",25/06/2013,14851,"3,058.00",STRATEGIC MARINE SERVICE,A00924,4,2013
Allerdale Borough Council,12408,Premises,Other Land & Buildings,Water & Sewage,25/06/2013,14852,8.74,UNITED UTILITIES,X00011,4,2013
Allerdale Borough Council,12403,Premises,Corporate Property,Gas,25/06/2013,14853,234.08,BRITISH GAS,X00006,4,2013
Allerdale Borough Council,12403,Premises,Corporate Property,Gas,25/06/2013,14854,734.65,BRITISH GAS,X00006,4,2013
Allerdale Borough Council,12201,Premises,Homelessness,Internal Maintenance,25/06/2013,14855,73.04,DERWENT & SOLWAY,A00219,4,2013
Allerdale Borough Council,12403,Premises,Corporate Property,Gas,25/06/2013,14856,249.69,BRITISH GAS,X00006,4,2013
Allerdale Borough Council,12403,Premises,Corporate Property,Gas,25/06/2013,14857,41.40,BRITISH GAS,X00006,4,2013
Allerdale Borough Council,12403,Premises,Corporate Property,Gas,25/06/2013,14858,295.03,BRITISH GAS,X00006,4,2013
Allerdale Borough Council,12403,Premises,Corporate Property,Gas,25/06/2013,14859,190.78,BRITISH GAS,X00006,4,2013
Allerdale Borough Council,12403,Premises,Corporate Property,Gas,25/06/2013,14860,282.75,BRITISH GAS,X00006,4,2013
Allerdale Borough Council,12403,Premises,Corporate Property,Gas,25/06/2013,14861,379.42,BRITISH GAS,X00006,4,2013
Allerdale Borough Council,15401,Supplies & Services,Document Management Pay Group,General Stationery,26/06/2013,14862,-21.40,SUPPLIES TEAM SOLUTIONS,A01776,4,2013
Allerdale Borough Council,15702,Supplies & Services,Corporate Property,Line Rentals,27/06/2013,14863,276.23,BRITISH TELECOMMUNICATIONS,X00004,4,2013
Allerdale Borough Council,15811,Supplies & Services,Shared IT Services,Software Maintenance,20/06/2013,14864,"17,973.72",QUANTIX,A00195,4,2013
Allerdale Borough Council,12202,Premises,Corporate Property,Electrical Repairs and Service,25/06/2013,14865,47.40,EDMUNDSON ELECTRICAL LTD,A00304,4,2013
Allerdale Borough Council,15101,Supplies & Services,Corporate Property,Equipment Costs,25/06/2013,14866,71.79,ASTSIGNS LIMITED,A01473,4,2013
Allerdale Borough Council,16150,Supplies & Services,Solway Wetlands Project,General Promotions,26/06/2013,14867,35.10,FINDEL EDUCATION LTD,A01767,4,2013
Allerdale Borough Council,33113,Income,Building Control,Building Control Fees Income,24/06/2013,14868,364.65,LRCDTR PARISH OF ST JOSEPHS,M00197,4,2013
Allerdale Borough Council,33113,Income,Building Control,Building Control Fees Income,24/06/2013,14869,172.66,KESWICK SUPERGLAZE LTD,X00110,4,2013
Allerdale Borough Council,33113,Income,Building Control,Building Control Fees Income,24/06/2013,14870,162.04,WORLD GROUP (WG) LIMITED,M00198,4,2013
Allerdale Borough Council,33113,Income,Building Control,Building Control Fees Income,24/06/2013,14871,60.48,Redacted information - included personal information ,M00199,4,2013
Allerdale Borough Council,16150,Supplies & Services,Solway Wetlands Project,General Promotions,28/05/2013,14872,"22,153.41",RSPB,M00200,4,2013
Allerdale Borough Council,10502,Employee Costs,Corporate Recruitment,Interview Expenses,27/06/2013,14873,54.74,Redacted information - included personal information ,M00201,4,2013
Allerdale Borough Council,15506,Supplies & Services,Redundancies,Professional Services,14/05/2013,14874,"7,000.00",BERWICK PARTNERS,A01737,4,2013
Allerdale Borough Council,15604,Supplies & Services,Document Management Pay Group,Franking Machine refills,26/06/2013,14875,"5,000.00",FP TELESET,A00428,4,2013
Allerdale Borough Council,10601,Employee Costs,Senior Mgt/PA Pay Group,External Courses & Seminar Fees,27/06/2013,14876,495.00,LOCAL GOVERNMENT ASSOCIATION,A00909,4,2013
Allerdale Borough Council,15812,Supplies & Services,Shared Revs & Bens IT Costs,Software Development,27/06/2013,14877,"3,700.00",NETCENTRIX LIMITED,A00106,4,2013
Allerdale Borough Council,15811,Supplies & Services,Shared IT Services,Software Maintenance,27/06/2013,14878,"3,608.10",NETCENTRIX LIMITED,A00106,4,2013
Allerdale Borough Council,15501,Supplies & Services,Human Resources Pay Group,Consultants Fees,27/06/2013,14879,800.00,HAYS,A00280,4,2013
Allerdale Borough Council,72101,Holding and Control Accounts,Derwent and Solway,Expenditure,03/06/2013,14880,"4,776.35",DERWENT & SOLWAY,A00219,4,2013
Allerdale Borough Council,72101,Holding and Control Accounts,Derwent and Solway,Expenditure,28/05/2013,14881,"4,774.51",DERWENT & SOLWAY,A00219,4,2013
Allerdale Borough Council,70104,VAT,Input VAT,VAT - 20%,15/06/2013,14882,86.44,BARCLAYCARD COMMERCIAL,X00207,4,2013
Allerdale Borough Council,15203,Supplies & Services,Chief Executive,Catering Costs and Consumables,15/06/2013,14883,179.38,BARCLAYCARD COMMERCIAL,X00207,4,2013
Allerdale Borough Council,72101,Holding and Control Accounts,Derwent and Solway,Expenditure,02/07/2013,14899,"8,864.55",DERWENT & SOLWAY,A00219,4,2013
Allerdale Borough Council,72101,Holding and Control Accounts,Derwent and Solway,Expenditure,02/07/2013,14900,"3,245.22",DERWENT & SOLWAY,A00219,4,2013
Allerdale Borough Council,72101,Holding and Control Accounts,Derwent and Solway,Expenditure,02/07/2013,14901,"5,186.32",DERWENT & SOLWAY,A00219,4,2013
Allerdale Borough Council,72101,Holding and Control Accounts,Derwent and Solway,Expenditure,02/07/2013,14902,"4,945.52",DERWENT & SOLWAY,A00219,4,2013
Allerdale Borough Council,15601,Supplies & Services,Communications and Marketing,Postage,04/06/2013,14903,"1,451.09",THE NATIONAL LEAFLET COMPANY,A01283,4,2013
Allerdale Borough Council,99900,Suspense Acc,9599,Budget - SUSPENSE,02/07/2013,14904,90.00,WAUGH & MUSGRAVE,R00001,4,2013
Allerdale Borough Council,15517,Supplies & Services,Shared Revs & Bens,Shared Service Contribution,07/06/2013,14905,"98,816.67",CARLISLE CITY COUNCIL,A00161,4,2013
Allerdale Borough Council,15405,Supplies & Services,Elections,Use of External Printers,25/06/2013,14906,79.00,FIRPRESS PRINTERS,A00063,4,2013
Allerdale Borough Council,20102,Third Party Payments,Parks and Grounds Maintenance,Horticulture (Obsolete),27/06/2013,14907,"1,153.00",ISS WATERERS LANDSCAPE,C00044,4,2013
Allerdale Borough Council,16150,Supplies & Services,Solway Wetlands Project,General Promotions,01/07/2013,14908,45.00,TRAVIS PERKINS,A00742,4,2013
Allerdale Borough Council,15401,Supplies & Services,Building Control,General Stationery,01/07/2013,14909,20.97,LAKELAND OFFICEPOINT LTD/INTEGRITY,A00069,4,2013
Allerdale Borough Council,10500,Employee Costs,Corporate Recruitment,Budget-Recruitment Expenses,01/07/2013,14910,130.00,COUNTRYSIDE JOBS SERVICE,A01344,4,2013
Allerdale Borough Council,15501,Supplies & Services,Homelessness,Consultants Fees,01/07/2013,14911,30.00,MARYPORT HEALTH SERVICE,A00421,4,2013
Allerdale Borough Council,12405,Premises,Homelessness,Rentals and Lease Charges,01/07/2013,14912,"1,194.54",HOME GROUP LTD,A00423,4,2013
Allerdale Borough Council,15201,Supplies & Services,Senior Mgt/PA Pay Group,Entertainment Of Visitors,02/07/2013,14913,260.00,KATIE'S KITCHEN,A01764,4,2013
Allerdale Borough Council,15201,Supplies & Services,Senior Mgt/PA Pay Group,Entertainment Of Visitors,02/07/2013,14914,97.50,KATIE'S KITCHEN,A01764,4,2013
Allerdale Borough Council,12302,Premises,Corporate Property,Building Cleaning,02/07/2013,14915,7.30,GD MACBETH AND SON,A00221,4,2013
Allerdale Borough Council,15803,Supplies & Services,Shared IT Services,Hardware Purchase,02/07/2013,14916,"1,227.64",PROBRAND,A00040,4,2013
Allerdale Borough Council,12101,Premises,Public Convenience Cleaning,External Maintenance & Decoration,01/07/2013,14917,110.00,UNBLOCK CUMBRIA LTD,C00005,4,2013
Allerdale Borough Council,20305,Third Party Payments,Maryport Wave,Contract Services-Leisure Centres,02/07/2013,14918,"16,427.20",CARLISLE LEISURE LTD,A00136,4,2013
Allerdale Borough Council,20305,Third Party Payments,Sports & Leisure Centres,Contract Services-Leisure Centres,02/07/2013,14919,"49,232.94",CARLISLE LEISURE LTD,A00136,4,2013
Allerdale Borough Council,12201,Premises,Corporate Property,Internal Maintenance,02/07/2013,14920,343.40,DERWENT FLOORING & CEILING CO,C00041,4,2013
Allerdale Borough Council,12101,Premises,Other Land & Buildings,External Maintenance & Decoration,02/07/2013,14921,519.00,ARTIFAX,C00000,4,2013
Allerdale Borough Council,16102,Supplies & Services,Town Centre Management,Regeneration Initiatives,02/07/2013,14922,78.72,WF HYGIENE & CLEANING SUPPLIES,A01794,4,2013
Allerdale Borough Council,10601,Employee Costs,Solway Coast AONB Core Funding,External Courses & Seminar Fees,02/07/2013,14923,553.00,NAAONB,A00735,4,2013
Allerdale Borough Council,12101,Premises,Workington Town Centre,External Maintenance & Decoration,02/07/2013,14924,128.00,Redacted information - included personal information ,C00008,4,2013
Allerdale Borough Council,20150,Third Party Payments,Footways,General Partnership Service Fees,02/07/2013,14925,"2,330.00",FIRTH FABRICATION SERVICES,C00020,4,2013
Allerdale Borough Council,15701,Supplies & Services,Carnegie Theatre,Installation Costs,20/06/2013,14926,61.25,BRITISH TELECOMMUNICATIONS,X00004,4,2013
Allerdale Borough Council,15701,Supplies & Services,Carnegie Theatre,Installation Costs,25/06/2013,14927,46.89,BRITISH TELECOMMUNICATIONS,X00004,4,2013
Allerdale Borough Council,15703,Supplies & Services,Carnegie Theatre,Call Charges,25/06/2013,14928,84.58,BRITISH TELECOMMUNICATIONS,X00004,4,2013
Allerdale Borough Council,15701,Supplies & Services,Carnegie Theatre,Installation Costs,25/06/2013,14929,37.89,BRITISH TELECOMMUNICATIONS,X00004,4,2013
Allerdale Borough Council,70104,VAT,Input VAT,VAT - 20%,27/06/2013,14930,434.00,KENNEDYS LAW LLP,A01842,4,2013
Allerdale Borough Council,15703,Supplies & Services,Shared IT Services,Call Charges,01/07/2013,14931,633.81,CABLE & WIRELESS/VODAFONE,A00934,4,2013
Allerdale Borough Council,12408,Premises,Other Land & Buildings,Water & Sewage,02/07/2013,14932,34.54,UNITED UTILITIES ,X00011,4,2013
Allerdale Borough Council,73101,Holding and Control Accounts,Allerdale House Tea Fund,Holding Accounts General - Income,01/07/2013,14933,17.54,BOOKER CASH & CARRY,A01419,4,2013
Allerdale Borough Council,16150,Supplies & Services,Solway Wetlands Project,General Promotions,03/07/2013,14934,95.00,Redacted information - included personal information ,M00203,4,2013
Allerdale Borough Council,16150,Supplies & Services,Solway Wetlands Project,General Promotions,25/06/2013,14935,37.06,Redacted information - included personal information ,M00202,4,2013
Allerdale Borough Council,54105,Capital Expenditure,Disabled Facilities Grants,Grants  Private Individuals (Capital),03/07/2013,14936,"4,316.63",Redacted information - included personal information ,M00155,4,2013
Allerdale Borough Council,16302,Supplies & Services,Members Services,Room Hire,27/06/2013,14938,192.00,CARLISLE LEISURE LTD,A00136,4,2013
Allerdale Borough Council,73102,Holding and Control Accounts,Capital Project Retentions,Holding Accounts General - Expenditure,25/06/2013,14939,"50,842.60",T ARMSTRONG - CONSTRUCT,C00003,4,2013
Allerdale Borough Council,16100,Supplies & Services,Communications and Marketing,Budget-Advertising and Promotions,02/07/2013,14940,"2,000.00",STOMPING GROUND,A01843,4,2013
Allerdale Borough Council,15501,Supplies & Services,Planning and Development,Consultants Fees,03/07/2013,14941,422.42,WYG ENGINEERING LTD,A00155,4,2013
Allerdale Borough Council,15501,Supplies & Services,Planning and Development,Consultants Fees,03/07/2013,14942,"3,328.76",WYG ENGINEERING LTD,A00155,4,2013
Allerdale Borough Council,15501,Supplies & Services,Planning and Development,Consultants Fees,03/07/2013,14943,704.30,WYG ENGINEERING LTD,A00155,4,2013
Allerdale Borough Council,15502,Supplies & Services,Legal Services,Land Registry Fees,03/07/2013,14944,45.00,HM LAND REGISTRY,A00505,4,2013
Allerdale Borough Council,15502,Supplies & Services,Legal Services,Land Registry Fees,03/08/2013,14945,1.00,HM LAND REGISTRY,A00505,4,2013
Allerdale Borough Council,21150,Transfer Payments,Festivals & Events,General Grants,04/07/2013,14946,900.00,COCKERMOUTH ROCK FESTIVAL LTD,A01293,4,2013
Allerdale Borough Council,21150,Transfer Payments,Festivals & Events,General Grants,26/06/2013,14947,450.00,FRIENDS OF SILLOTH GREEN,M00204,4,2013
Allerdale Borough Council,21150,Transfer Payments,Festivals & Events,General Grants,03/07/2013,14948,450.00,WIGTON YOUTH  STATION,M00205,4,2013
Allerdale Borough Council,15808,Supplies & Services,Multi-functional Printers,Computer Consumables,11/06/2013,14949,430.00,XEROX OFFICE SUPPLIES,A00366,4,2013
Allerdale Borough Council,15405,Supplies & Services,Elections,Use of External Printers,20/06/2013,14950,243.00,FIRPRESS PRINTERS,A00063,4,2013
Allerdale Borough Council,16150,Supplies & Services,Town Centre Management,General Promotions,27/06/2013,14951,250.00,CN MAGAZINES,A01413,4,2013
Allerdale Borough Council,16150,Supplies & Services,Town Centre Management,General Promotions,27/06/2013,14952,250.00,CN MAGAZINES,A01413,4,2013
Allerdale Borough Council,15402,Supplies & Services,Customer Services Pay Group,Photocopier Charges,27/06/2013,14953,12.69,RICOH UK LTD,A00037,4,2013
Allerdale Borough Council,15402,Supplies & Services,Customer Services Pay Group,Photocopier Charges,27/06/2013,14954,8.73,RICOH UK LTD,A00037,4,2013
Allerdale Borough Council,15601,Supplies & Services,Communications and Marketing,Postage,01/07/2013,14955,"2,907.45",THE NATIONAL LEAFLET COMPANY,A01283,4,2013
Allerdale Borough Council,15506,Supplies & Services,Legal Services,Professional Services,25/06/2013,14956,350.00,KINGS CHAMBERS,A00348,4,2013
Allerdale Borough Council,15602,Supplies & Services,Elections,Business Reply Licences,20/06/2013,14957,79.00,FIRPRESS PRINTERS,A00063,4,2013
Allerdale Borough Council,15602,Supplies & Services,Elections,Business Reply Licences,25/06/2013,14958,-79.00,FIRPRESS PRINTERS,A00063,4,2013
Allerdale Borough Council,15602,Supplies & Services,Elections,Business Reply Licences,27/06/2013,14959,97.00,ROYAL MAIL LETTERS,X00021,4,2013
Allerdale Borough Council,15602,Supplies & Services,Elections,Business Reply Licences,02/07/2013,14960,"2,947.00",PAKFLATT (UK) LTD,A00810,4,2013
Allerdale Borough Council,15101,Supplies & Services,Carnegie Theatre,Equipment Costs,09/06/2013,14961,328.90,HSBC CARD SERVICES,X00000,4,2013
Allerdale Borough Council,15601,Supplies & Services,Communications and Marketing,Postage,01/07/2013,14962,73.63,THE NATIONAL LEAFLET COMPANY,A01283,4,2013
Allerdale Borough Council,15509,Supplies & Services,Elections,Election Costs,04/07/2013,14963,68.18,Redacted information - included personal information ,M00206,4,2013
Allerdale Borough Council,15509,Supplies & Services,Elections,Election Costs,04/07/2013,14964,23.59,Redacted information - included personal information ,M00207,4,2013
Allerdale Borough Council,15509,Supplies & Services,Elections,Election Costs,04/07/2013,14965,36.07,Redacted information - included personal information ,M00208,4,2013
Allerdale Borough Council,15509,Supplies & Services,Elections,Election Costs,04/07/2013,14966,60.98,Redacted information - included personal information ,M00209,4,2013
Allerdale Borough Council,15509,Supplies & Services,Elections,Election Costs,04/07/2013,14967,43.59,Redacted information - included personal information ,M00210,4,2013
Allerdale Borough Council,15509,Supplies & Services,Elections,Election Costs,04/07/2013,14968,45.49,Redacted information - included personal information ,M00211,4,2013
Allerdale Borough Council,15509,Supplies & Services,Elections,Election Costs,04/07/2013,14969,180.00,Redacted information - included personal information ,M00212,4,2013
Allerdale Borough Council,10401,Employee Costs,Licensing Pay Group,Agency Staff Costs,04/06/2013,14970,71.96,ADECCO RECRUITMENT,A00188,4,2013
Allerdale Borough Council,15403,Supplies & Services,Communications and Marketing,Publications and Periodicals,04/06/2013,14971,66.00,P & D NEWSAGENTS,A00237,4,2013
Allerdale Borough Council,10401,Employee Costs,Licensing Pay Group,Agency Staff Costs,11/06/2013,14972,314.47,ADECCO RECRUITMENT,A00188,4,2013
Allerdale Borough Council,10401,Employee Costs,Licensing Pay Group,Agency Staff Costs,19/06/2013,14973,394.42,ADECCO RECRUITMENT,A00188,4,2013
Allerdale Borough Council,10401,Employee Costs,Licensing Pay Group,Agency Staff Costs,25/06/2013,14974,394.42,ADECCO RECRUITMENT,A00188,4,2013
Allerdale Borough Council,15500,Supplies & Services,Food and Occupational Health,Budget-Services,26/06/2013,14975,143.80,PUBLIC HEALTH ENGLAND,A01839,4,2013
Allerdale Borough Council,15500,Supplies & Services,Food and Occupational Health,Budget-Services,26/06/2013,14976,143.80,PUBLIC HEALTH ENGLAND,A01839,4,2013
Allerdale Borough Council,10401,Employee Costs,Licensing Pay Group,Agency Staff Costs,27/06/2013,14977,384.00,VENN GROUP,A01836,4,2013
Allerdale Borough Council,10401,Employee Costs,Licensing Pay Group,Agency Staff Costs,01/07/2013,14978,394.42,ADECCO RECRUITMENT,A00188,4,2013
Allerdale Borough Council,15300,Supplies & Services,Food and Occupational Health,Budget-Prov of Clothing and Equipment,01/07/2013,14979,71.96,BERENDSEN UK LTD,A00027,4,2013
Allerdale Borough Council,15300,Supplies & Services,Food and Occupational Health,Budget-Prov of Clothing and Equipment,01/07/2013,14980,-45.51,BERENDSEN UK LTD,A00027,4,2013
Allerdale Borough Council,20102,Third Party Payments,Recycling,Horticulture (Obsolete),25/06/2013,14981,"4,317.30",FCC RECYCLING (UK) LTD (ALCO),A00185,4,2013
Allerdale Borough Council,20102,Third Party Payments,Recycling,Horticulture (Obsolete),27/06/2013,14982,240.32,THOMPSONS PLANT HIRE LTD,A00262,4,2013
Allerdale Borough Council,20102,Third Party Payments,Recycling,Horticulture (Obsolete),01/07/2013,14983,"3,437.50",THOMPSONS PLANT HIRE LTD,A00262,4,2013
Allerdale Borough Council,20102,Third Party Payments,Recycling,Horticulture (Obsolete),01/07/2013,14984,33.00,THOMPSONS PLANT HIRE LTD,A00262,4,2013
Allerdale Borough Council,20102,Third Party Payments,Recycling,Horticulture (Obsolete),02/07/2013,14985,"3,086.92",FCC RECYCLING (UK) LTD (ALCO),A00185,4,2013
Allerdale Borough Council,15701,Supplies & Services,Environmental Services Pay Group,Installation Costs,26/06/2013,14986,23.09,VODAFONE CORPORATE LTD,A00198,4,2013
Allerdale Borough Council,15601,Supplies & Services,Environmental Services Pay Group,Postage,01/07/2013,14987,200.00,ROYAL MAIL LETTERS,X00021,4,2013
Allerdale Borough Council,81602,Balance Sheet,General Fund,Prov-Insurance Excess (Balance Sheet),13/06/2013,14988,525.00,ZURICH MUNICIPAL,A00429,4,2013
Allerdale Borough Council,12101,Premises,Other Land & Buildings,External Maintenance & Decoration,26/06/2013,14989,"2,139.50",JOHN ELLIOTT LIMITED,C00023,4,2013
Allerdale Borough Council,51101,Capital Expenditure,KMAG Enhancement Project,External Contractor Payments (Capital),27/06/2013,14990,665.00,BOX CLEVER STORAGE,A00880,4,2013
Allerdale Borough Council,15500,Supplies & Services,Food and Occupational Health,Budget-Services,01/07/2013,14991,235.00,MP MARINE LTD,A00113,4,2013
Allerdale Borough Council,12305,Premises,Corporate Property,Inspections and Services,02/07/2013,14992,885.00,WEST COAST THERMAL LIMITED,C00040,4,2013
Allerdale Borough Council,15101,Supplies & Services,Public Building Cleaning,Equipment Costs,02/07/2013,14993,108.00,WF HYGIENE & CLEANING SUPPLIES,A01794,4,2013
Allerdale Borough Council,15802,Supplies & Services,Shared IT Services,Hardware Maintenance,05/07/2013,14994,"5,774.95",NETCENTRIX LIMITED,A00106,4,2013
Allerdale Borough Council,10401,Employee Costs,IT - New Initiatives,Agency Staff Costs,05/07/2013,14995,"1,300.00",HAYS,A00280,4,2013
Allerdale Borough Council,15506,Supplies & Services,Legal Services,Professional Services,05/07/2013,14996,"3,008.60",EVERSHEDS LLP,A01516,4,2013
Allerdale Borough Council,15501,Supplies & Services,Homelessness,Consultants Fees,05/07/2013,14997,25.98,JAMES STREET GROUP PRACTICE,A00462,4,2013
Allerdale Borough Council,15506,Supplies & Services,Legal Services,Professional Services,05/07/2013,14998,100.00,KINGS CHAMBERS,A00348,4,2013
Allerdale Borough Council,12403,Premises,Homelessness,Gas,05/07/2013,14999,30.00,MEPOS LIMITED,A01286,4,2013
Allerdale Borough Council,15903,Supplies & Services,Members Services,"Courses, Training & Seminars",05/07/2013,15000,3.37,K&R BADGES LIMITED,A01328,4,2013
Allerdale Borough Council,20150,Third Party Payments,Footways,General Partnership Service Fees,05/07/2013,15001,260.00,Redacted information - included personal information ,A00242,4,2013
Allerdale Borough Council,10401,Employee Costs,Licensing Pay Group,Agency Staff Costs,05/07/2013,15002,384.00,VENN GROUP,A01836,4,2013
Allerdale Borough Council,51101,Capital Expenditure,KMAG Enhancement Project,External Contractor Payments (Capital),05/07/2013,15003,"4,954.00",MOSEDALE GILLATT,A01020,4,2013
Allerdale Borough Council,16350,Supplies & Services,Elections,Miscellaneous Expenses,08/07/2013,15007,889.60,YOUR PENSION SERVICE,A01465,4,2013
Allerdale Borough Council,15502,Supplies & Services,Legal Services,Land Registry Fees,08/07/2013,15008,72.00,HM LAND REGISTRY,A00505,4,2013
Allerdale Borough Council,12405,Premises,Parking Services Pay Group,Rentals and Lease Charges,05/07/2013,15009,282.00,SOLWAY PLAIN FUTURES LTD,A01194,4,2013
Allerdale Borough Council,15508,Supplies & Services,Risk Management,Subscriptions,26/06/2013,15010,155.00,CIPFA,A00572,4,2013
Allerdale Borough Council,15501,Supplies & Services,Human Resources Pay Group,Consultants Fees,05/07/2013,15011,"1,467.00",NORTH WEST EMPLOYERS,A00139,4,2013
Allerdale Borough Council,73102,Holding and Control Accounts,Capital Project Retentions,Holding Accounts General - Expenditure,02/07/2013,15012,"215,132.45",T ARMSTRONG - CONSTRUCT,C00003,4,2013
Allerdale Borough Council,54105,Capital Expenditure,Disabled Facilities Grants,Grants  Private Individuals (Capital),10/07/2013,15013,"2,150.00",BLUE FLAME SERVICES LTD,X00213,4,2013
Allerdale Borough Council,54105,Capital Expenditure,Disabled Facilities Grants,Grants  Private Individuals (Capital),10/07/2013,15014,"3,881.00",THYSSEN KRUPP ENCASA/LIFTABLE,X00105,4,2013
Allerdale Borough Council,54105,Capital Expenditure,Disabled Facilities Grants,Grants  Private Individuals (Capital),10/07/2013,15015,"1,120.00",K BAILIFF & SON LIMITED,X00116,4,2013
Allerdale Borough Council,54105,Capital Expenditure,Disabled Facilities Grants,Grants  Private Individuals (Capital),10/07/2013,15016,"2,380.00",BLUE FLAME SERVICES LTD,X00213,4,2013
Allerdale Borough Council,54105,Capital Expenditure,Disabled Facilities Grants,Grants  Private Individuals (Capital),10/07/2013,15017,725.00,CONISTON CONSULTANTS LTD,X00210,4,2013
Allerdale Borough Council,54105,Capital Expenditure,Disabled Facilities Grants,Grants  Private Individuals (Capital),10/07/2013,15018,"12,171.00",TOP NOTCH CONTRACTORS LTD,X00165,4,2013
Allerdale Borough Council,54105,Capital Expenditure,Disabled Facilities Grants,Grants  Private Individuals (Capital),10/07/2013,15019,"1,437.60",ALPHA DESIGN,X00118,4,2013
Allerdale Borough Council,16150,Supplies & Services,Solway Wetlands Project,General Promotions,04/07/2013,15020,"23,544.30",RSPB,M00200,4,2013
Allerdale Borough Council,15501,Supplies & Services,Planning Policy,Consultants Fees,02/07/2013,15021,"18,063.00",KNIGHT KAVANAGH & PAGE,A01844,4,2013
Allerdale Borough Council,70104,VAT,Input VAT,VAT - 20%,01/07/2013,15022,58.84,ROSSENDALES LTD,A00964,4,2013
Allerdale Borough Council,70104,VAT,Input VAT,VAT - 20%,05/07/2013,15023,170.71,JACOBS,A00495,4,2013
Allerdale Borough Council,70104,VAT,Input VAT,VAT - 20%,05/07/2013,15024,8.00,ROSSENDALES LTD,A00964,4,2013
Allerdale Borough Council,20100,Third Party Payments,Grants to Voluntary Organisation,Budget-Partnership Services,10/07/2013,15025,"16,250.00",CITIZENS ADVICE BUREAU,A01181,4,2013
Allerdale Borough Council,20100,Third Party Payments,Grants to Voluntary Organisation,Budget-Partnership Services,10/07/2013,15026,"17,758.50",CUMBRIA LAW CENTRE,A01446,4,2013
Allerdale Borough Council,10600,Employee Costs,Training,Budget-Training,14/06/2013,15027,185.00,R H ENVIRONMENTAL LTD,A01718,4,2013
Allerdale Borough Council,10602,Employee Costs,Training,Post Entry Training,14/06/2013,15028,265.00,THE CONSULTATION INSTITUTE,A00744,4,2013
Allerdale Borough Council,12405,Premises,Customer Services Pay Group,Rentals and Lease Charges,05/07/2013,15029,427.00,SOLWAY PLAIN FUTURES LTD,A01194,4,2013
Allerdale Borough Council,15550,Supplies & Services,Recycling,General-Service Related Fees,05/07/2013,15030,"1,359.97",SCOTTS HAULAGE,A00266,4,2013
Allerdale Borough Council,20102,Third Party Payments,Parks and Grounds Maintenance,Horticulture (Obsolete),05/07/2013,15031,"94,110.00",ISS WATERERS LANDSCAPE,C00044,4,2013
Allerdale Borough Council,12303,Premises,Corporate Property,Window Cleaning,05/07/2013,15032,240.00,Redacted information - included personal information ,A00259,4,2013
Allerdale Borough Council,20101,Third Party Payments,Public Convenience Cleaning,Cleansing Contract,05/07/2013,15033,200.00,J STRONG & SON,A00209,4,2013
Allerdale Borough Council,10401,Employee Costs,Environmental Services Pay Group,Agency Staff Costs,05/07/2013,15034,296.00,Redacted information - included personal information ,A00176,4,2013
Allerdale Borough Council,10401,Employee Costs,Environmental Services Pay Group,Agency Staff Costs,05/07/2013,15035,56.00,Redacted information - included personal information ,A00176,4,2013
Allerdale Borough Council,15803,Supplies & Services,Shared IT Services,Hardware Purchase,05/07/2013,15036,40.57,PROBRAND,A00040,4,2013
Allerdale Borough Council,15802,Supplies & Services,Shared IT Services,Hardware Maintenance,05/07/2013,15037,"1,021.21",PROBRAND,A00040,4,2013
Allerdale Borough Council,15506,Supplies & Services,Legal Services,Professional Services,10/07/2013,15038,"1,500.00",TROWERS & HAMLINS LLP,A01809,4,2013
Allerdale Borough Council,15506,Supplies & Services,Legal Services,Professional Services,10/07/2013,15039,299.60,FREETH CARTWRIGHT LLP,A01821,4,2013
Allerdale Borough Council,12302,Premises,Carnegie Theatre,Building Cleaning,10/07/2013,15040,134.61,CATERITE FOOD & WINE SERVICE,A00210,4,2013
Allerdale Borough Council,15508,Supplies & Services,Human Resources Pay Group,Subscriptions,10/07/2013,15041,500.00,WOLTERS KLUWER (UK) LIMITED,A00478,4,2013
Allerdale Borough Council,10401,Employee Costs,Licensing Pay Group,Agency Staff Costs,10/07/2013,15042,394.42,ADECCO RECRUITMENT,A00188,4,2013
Allerdale Borough Council,12408,Premises,Corporate Property,Water & Sewage,10/07/2013,15043,"1,644.69",RM WATER SERVICES,C00121,4,2013
Allerdale Borough Council,15401,Supplies & Services,Document Management Pay Group,General Stationery,10/07/2013,15044,143.16,LYRECO,A00043,4,2013
Allerdale Borough Council,15603,Supplies & Services,Document Management Pay Group,Franking Machine Costs,10/07/2013,15045,191.61,LYRECO,A00043,4,2013
Allerdale Borough Council,15401,Supplies & Services,Document Management Pay Group,General Stationery,10/07/2013,15046,22.49,LYRECO,A00043,4,2013
Allerdale Borough Council,15401,Supplies & Services,Document Management Pay Group,General Stationery,10/07/2013,15047,39.54,LYRECO,A00043,4,2013
Allerdale Borough Council,10401,Employee Costs,Licensing Pay Group,Agency Staff Costs,10/07/2013,15048,64.00,VENN GROUP,A01836,4,2013
Allerdale Borough Council,15501,Supplies & Services,Human Resources Pay Group,Consultants Fees,10/07/2013,15049,150.00,BURNETTS SOLICITORS,A00129,4,2013
Allerdale Borough Council,15501,Supplies & Services,Human Resources Pay Group,Consultants Fees,10/07/2013,15050,105.30,BURNETTS SOLICITORS,A00129,4,2013
Allerdale Borough Council,10602,Employee Costs,Apprentices & Graduates,Post Entry Training,04/06/2013,15051,"1,751.00",CARLISLE CITY COUNCIL,A00161,4,2013
Allerdale Borough Council,10600,Employee Costs,Training,Budget-Training,20/06/2013,15052,122.44,ENTERPRISE RENT A CAR,A01367,4,2013
Allerdale Borough Council,15514,Supplies & Services,Mayor's Fund,Public Entertainment,25/06/2013,15053,8.10,P & D NEWSAGENTS,A00237,4,2013
Allerdale Borough Council,15512,Supplies & Services,Animal Welfare,Kennelling,05/07/2013,15054,"2,741.00",WHINMILL FARM CANINE CENTRE,A00117,4,2013
Allerdale Borough Council,15550,Supplies & Services,Licensing Service,General-Service Related Fees,07/06/2013,15055,176.00,DISCLOSURE & BARRING SERVICE,X00041,4,2013
Allerdale Borough Council,15507,Supplies & Services,Land Charges Service,Searches,27/06/2013,15056,"1,946.90",CUMBRIA CC - GENERAL,A00066,4,2013
Allerdale Borough Council,15550,Supplies & Services,Licensing Service,General-Service Related Fees,02/07/2013,15057,176.00,DISCLOSURE & BARRING SERVICE,X00041,4,2013
Allerdale Borough Council,10401,Employee Costs,Licensing Pay Group,Agency Staff Costs,10/07/2013,15058,384.00,VENN GROUP,A01836,4,2013
Allerdale Borough Council,10401,Employee Costs,Licensing Pay Group,Agency Staff Costs,10/07/2013,15059,384.00,VENN GROUP,A01836,4,2013
Allerdale Borough Council,10401,Employee Costs,Licensing Pay Group,Agency Staff Costs,10/07/2013,15060,384.00,VENN GROUP,A01836,4,2013
Allerdale Borough Council,10401,Employee Costs,Licensing Pay Group,Agency Staff Costs,10/07/2013,15061,384.00,VENN GROUP,A01836,4,2013
Allerdale Borough Council,10401,Employee Costs,Licensing Pay Group,Agency Staff Costs,10/07/2013,15062,384.00,VENN GROUP,A01836,4,2013
Allerdale Borough Council,10401,Employee Costs,Licensing Pay Group,Agency Staff Costs,10/07/2013,15063,384.00,VENN GROUP,A01836,4,2013
Allerdale Borough Council,15808,Supplies & Services,Shared IT Services,Computer Consumables,11/07/2013,15064,6.95,SOUTH RIBBLE & CHORLEY COUNCILS,M00214,4,2013
Allerdale Borough Council,35106,Income,Homelessness,Dwellings Income,05/07/2013,15065,62.94,ALLERDALE,A00342,4,2013
Allerdale Borough Council,12408,Premises,Homelessness,Water & Sewage,05/07/2013,15066,95.01,UNITED UTILITIES ,X00011,4,2013
Allerdale Borough Council,15804,Supplies & Services,Shared IT Services,Computer Data Lines B.T.,10/07/2013,15067,"3,037.97",CABLE & WIRELESS/VODAFONE,A00934,4,2013
Allerdale Borough Council,12402,Premises,Corporate Property,Electricity,10/07/2013,15068,193.73,N POWER,X00015,4,2013
Allerdale Borough Council,12402,Premises,Car Parks Inspection & Maintenance,Electricity,10/07/2013,15069,290.62,N POWER ,X00015,4,2013
Allerdale Borough Council,12402,Premises,Car Parks Inspection & Maintenance,Electricity,10/07/2013,15070,78.71,N POWER,X00015,4,2013
Allerdale Borough Council,12402,Premises,Footways,Electricity,10/07/2013,15071,175.98,N POWER,X00015,4,2013
Allerdale Borough Council,12408,Premises,Public Convenience Cleaning,Water & Sewage,10/07/2013,15072,45.35,UNITED UTILITIES,X00011,4,2013
Allerdale Borough Council,15703,Supplies & Services,Silloth TIC,Call Charges,10/07/2013,15073,48.70,BRITISH TELECOMMUNICATIONS,X00004,4,2013
Allerdale Borough Council,15401,Supplies & Services,Document Management Pay Group,General Stationery,10/07/2013,15074,-62.97,LYRECO,A00043,4,2013
Allerdale Borough Council,15808,Supplies & Services,Multi-functional Printers,Computer Consumables,10/07/2013,15075,430.00,XEROX OFFICE SUPPLIES,A00366,4,2013
Allerdale Borough Council,15401,Supplies & Services,Document Management Pay Group,General Stationery,10/07/2013,15076,62.97,LYRECO,A00043,4,2013
Allerdale Borough Council,15801,Supplies & Services,IT - New Initiatives,Hardware Installation,11/03/2013,15077,"3,910.63",HSBC CARD SERVICES ,X00000,4,2013
Allerdale Borough Council,10502,Employee Costs,Corporate Recruitment,Interview Expenses,08/07/2013,15078,64.17,HSBC CARD SERVICES ,X00000,4,2013
Allerdale Borough Council,14105,,Parking Services Pay Group,"Fuel, Lubricants & Consumables",11/06/2013,15079,533.19,BP OIL UK LTD ,X00022,4,2013
Allerdale Borough Council,14105,,Parking Services Pay Group,"Fuel, Lubricants & Consumables",21/05/2013,15080,468.97,BP OIL UK LTD ,X00022,4,2013
Allerdale Borough Council,15501,Supplies & Services,New Centre Development,Consultants Fees,04/06/2013,15081,"1,000.00",FMG CONSULTING LTD,A01721,4,2013
Allerdale Borough Council,15102,Supplies & Services,Members Services,Equipment Repair & Maintenance,01/07/2013,15082,272.51,TWOFOLD LTD,A00317,4,2013
Allerdale Borough Council,14202,,Members Services,Hire Car and petrol,10/07/2013,15083,120.00,KEN ROUTLEDGE TRAVEL LTD,A00192,4,2013
Allerdale Borough Council,15400,Supplies & Services,Asset Management Pay Group,"Budget-Printing,Stationery & Office Supp",10/07/2013,15084,630.00,METROPLAN LIMITED,A00098,4,2013
Allerdale Borough Council,15803,Supplies & Services,Shared IT Services,Hardware Purchase,10/07/2013,15085,45.40,STORM TECHNOLOGIES,A01018,4,2013
Allerdale Borough Council,12201,Premises,Tenanted Properties,Internal Maintenance,10/07/2013,15086,749.00,Redacted information - included personal information ,C00008,4,2013
Allerdale Borough Council,12203,Premises,Public Convenience Cleaning,Plumbing and Heating Maintenance,10/07/2013,15087,303.50,Redacted information - included personal information ,C00008,4,2013
Allerdale Borough Council,16302,Supplies & Services,Housing Services Pay Group,Room Hire,10/07/2013,15088,35.00,COCKERMOUTH TOWN COUNCIL,A00586,4,2013
Allerdale Borough Council,99910,,Data takeon,Creditors - Data takeon,16/07/2013,15090,"-2,033.59",XEROX (UK) LTD,A00782,4,2013
Allerdale Borough Council,99910,,Data takeon,Creditors - Data takeon,16/07/2013,15091,"-3,162.89",XEROX (UK) LTD,A00782,4,2013
Allerdale Borough Council,99910,,Data takeon,Creditors - Data takeon,16/07/2013,15092,"1,925.19",XEROX (UK) LTD,A00782,4,2013
Allerdale Borough Council,99910,,Data takeon,Creditors - Data takeon,16/07/2013,15093,"3,083.42",XEROX (UK) LTD,A00782,4,2013
Allerdale Borough Council,99910,,Data takeon,Creditors - Data takeon,16/07/2013,15094,321.23,BP OIL UK LTD,X00022,4,2013
Allerdale Borough Council,99910,,Data takeon,Creditors - Data takeon,16/07/2013,15095,658.85,BP OIL UK LTD,X00022,4,2013
Allerdale Borough Council,99910,,Data takeon,Creditors - Data takeon,16/07/2013,15096,649.80,BP OIL UK LTD,X00022,4,2013
Allerdale Borough Council,99910,,Data takeon,Creditors - Data takeon,16/07/2013,15097,583.07,BP OIL UK LTD,X00022,4,2013
Allerdale Borough Council,99910,,Data takeon,Creditors - Data takeon,16/07/2013,15098,-242.88,VOLKSWAGEN GROUP LEASING,A01239,4,2013
Allerdale Borough Council,10401,Employee Costs,IT - New Initiatives,Agency Staff Costs,27/06/2013,15099,"1,462.50",HAYS,A00280,4,2013
Allerdale Borough Council,20150,Third Party Payments,Parking Services Pay Group,General Partnership Service Fees,01/07/2013,15100,368.40,PATROL,A00952,4,2013
Allerdale Borough Council,15102,Supplies & Services,Off-street - Owned,Equipment Repair & Maintenance,02/07/2013,15101,"2,326.97",SCAN COIN LIMITED,A00466,4,2013
Allerdale Borough Council,15102,Supplies & Services,Off-street - Owned,Equipment Repair & Maintenance,02/07/2013,15102,"1,240.98",SCAN COIN LIMITED,A00466,4,2013
Allerdale Borough Council,15502,Supplies & Services,Legal Services,Land Registry Fees,16/07/2013,15103,59.00,HM LAND REGISTRY,A00505,4,2013
Allerdale Borough Council,15502,Supplies & Services,Legal Services,Land Registry Fees,16/07/2013,15104,3.00,HM LAND REGISTRY,A00505,4,2013
Allerdale Borough Council,72101,Holding and Control Accounts,Derwent and Solway,Expenditure,09/07/2013,15105,"8,070.66",DERWENT & SOLWAY,A00219,4,2013
Allerdale Borough Council,72101,Holding and Control Accounts,Derwent and Solway,Expenditure,15/07/2013,15106,"3,399.73",DERWENT & SOLWAY,A00219,4,2013
Allerdale Borough Council,12202,Premises,Public Convenience Cleaning,Electrical Repairs and Service,11/07/2013,15107,"6,335.70",J & J ELECTRICAL (CUMBRIA) LTD,C00038,4,2013
Allerdale Borough Council,15403,Supplies & Services,Finance and Accounting Pay Group,Publications and Periodicals,11/07/2013,15108,678.75,CIPFA,A00572,4,2013
Allerdale Borough Council,12305,Premises,Corporate Property,Inspections and Services,11/07/2013,15109,198.50,TYCO FIRE&INTEGRATED SOLUTIONS,A00773,4,2013
Allerdale Borough Council,12408,Premises,Corporate Property,Water & Sewage,11/07/2013,15110,"48,313.87",RM WATER SERVICES,C00121,4,2013
Allerdale Borough Council,15508,Supplies & Services,Corporate Management,Subscriptions,11/07/2013,15111,"4,174.81",NORTH WEST EMPLOYERS,A00139,4,2013
Allerdale Borough Council,15501,Supplies & Services,Human Resources Pay Group,Consultants Fees,11/07/2013,15112,113.40,BURNETTS SOLICITORS,A00129,4,2013
Allerdale Borough Council,15803,Supplies & Services,Shared IT Services,Hardware Purchase,11/07/2013,15113,70.60,PROBRAND,A00040,4,2013
Allerdale Borough Council,15103,Supplies & Services,Solway Coast AONB Core Funding,Purchase of Materials,11/07/2013,15114,25.54,ASPATRIA FARMERS LIMITED,A00736,4,2013
Allerdale Borough Council,15507,Supplies & Services,Land Charges Service,Searches,11/07/2013,15115,"1,946.90",CUMBRIA CC - GENERAL,A00066,4,2013
Allerdale Borough Council,15802,Supplies & Services,Shared IT Services,Hardware Maintenance,11/07/2013,15116,"1,140.00",PARALOGIC LTD,A00102,4,2013
Allerdale Borough Council,12201,Premises,Corporate Property,Internal Maintenance,12/07/2013,15117,"1,910.47",Redacted information - included personal information ,C00008,4,2013
Allerdale Borough Council,15301,Supplies & Services,Parking Services Pay Group,Uniforms,12/07/2013,15118,778.45,KELTIC,A00017,4,2013
Allerdale Borough Council,15302,Supplies & Services,Solway Coast AONB Core Funding,Protective Clothing,12/07/2013,15119,15.84,ARCO LIMITED - CARLISLE,A01448,4,2013
Allerdale Borough Council,12309,Premises,Corporate Property,Fire and Safety,12/07/2013,15120,193.50,PRO-TEC SYSTEMS,C00026,4,2013
Allerdale Borough Council,15501,Supplies & Services,Homelessness,Consultants Fees,12/07/2013,15121,15.45,WIGTON GROUP MEDICAL PRACTICE,A00460,4,2013
Allerdale Borough Council,15501,Supplies & Services,Homelessness,Consultants Fees,12/07/2013,15122,25.98,JAMES STREET GROUP PRACTICE,A00462,4,2013
Allerdale Borough Council,16150,Supplies & Services,Town Centre Management,General Promotions,12/07/2013,15123,197.50,ISS WATERERS LANDSCAPE,C00044,4,2013
Allerdale Borough Council,15405,Supplies & Services,Off-street - Owned,Use of External Printers,12/07/2013,15124,915.00,FIRPRESS PRINTERS,A00063,4,2013
Allerdale Borough Council,12309,Premises,Corporate Property,Fire and Safety,15/07/2013,15125,"1,072.25",PRO-TEC SYSTEMS,C00026,4,2013
Allerdale Borough Council,16101,Supplies & Services,Planning and Development,Statutory Notices,16/07/2013,15126,"1,454.27",CUMBRIA CC - 3C STUDIO,A00070,4,2013
Allerdale Borough Council,16150,Supplies & Services,Solway Coast AONB Core Funding,General Promotions,16/07/2013,15127,200.00,BANK MILL NURSERIES & VISITOR CENTRE,A01834,4,2013
Allerdale Borough Council,20101,Third Party Payments,Recycling,Cleansing Contract,16/07/2013,15128,"369,686.25",FCC ENVIRONMENT SERVICES (FOCSA),A00085,4,2013
Allerdale Borough Council,16350,Supplies & Services,Homelessness,Miscellaneous Expenses,16/07/2013,15129,75.00,HADLEIGH RUDDICK BR PROPERTIES,M00217,4,2013
Allerdale Borough Council,33110,Income,Land Charges Service,Search & Enquiry Fees General Income,09/07/2013,15130,15.00,PAISLEYS SOLICITORS,M00216,4,2013
Allerdale Borough Council,15505,Supplies & Services,Licensing Service,Licences,09/07/2013,15131,180.00,Redacted information - included personal information ,M00215,4,2013
Allerdale Borough Council,32106,Income,Elections,Publications Income,16/07/2013,15132,39.00,Redacted information - included personal information ,M00186,4,2013
Allerdale Borough Council,33150,Income,Credit Union,Other Fees Income,11/07/2013,15133,428.18,THE ALLERDALE CREDIT UNION,A00493,4,2013
Allerdale Borough Council,15201,Supplies & Services,Leaders Services,Entertainment Of Visitors,11/07/2013,15134,74.38,ALLERDALE BOROUGH COUNCIL,X00034,4,2013
Allerdale Borough Council,12405,Premises,Off-street - Owned,Rentals and Lease Charges,17/05/2013,15135,"4,000.00",KESWICK RUGBY FOOTBALL CLUB LTD,X00117,4,2013
Allerdale Borough Council,20108,Third Party Payments,Banking and Interest,Audit Commission,19/06/2013,15136,"15,817.50",GRANT THORNTON UK LLP,A01736,4,2013
Allerdale Borough Council,15703,Supplies & Services,Banking and Interest,Call Charges,25/06/2013,15137,80.40,BRITISH TELECOMMUNICATIONS,X00004,4,2013
Allerdale Borough Council,15101,Supplies & Services,Corporate Property,Equipment Costs,27/06/2013,15138,38.00,ARCO LIMITED - CARLISLE,A01448,4,2013
Allerdale Borough Council,20150,Third Party Payments,Parking Services Pay Group,General Partnership Service Fees,01/07/2013,15139,-126.00,PATROL,A00952,4,2013
Allerdale Borough Council,12405,Premises,Off-street - Owned,Rentals and Lease Charges,10/07/2013,15140,155.60,KESWICK RUGBY FOOTBALL CLUB LTD,X00117,4,2013
Allerdale Borough Council,12405,Premises,Off-street - Owned,Rentals and Lease Charges,10/07/2013,15141,"4,000.00",KESWICK RUGBY FOOTBALL CLUB LTD,X00117,4,2013
Allerdale Borough Council,12402,Premises,Corporate Property,Electricity,10/07/2013,15142,"3,257.85",N POWER,X00015,4,2013
Allerdale Borough Council,12402,Premises,Footways,Electricity,10/07/2013,15143,"4,569.77",N POWER,X00015,4,2013
Allerdale Borough Council,15101,Supplies & Services,Corporate Property,Equipment Costs,10/07/2013,15144,-38.00,ARCO LIMITED - CARLISLE,A01448,4,2013
Allerdale Borough Council,15301,Supplies & Services,Parking Services Pay Group,Uniforms,10/07/2013,15145,83.54,ARCO LIMITED - CARLISLE,A01448,4,2013
Allerdale Borough Council,15401,Supplies & Services,Document Management Pay Group,General Stationery,10/07/2013,15148,159.28,LYRECO,A00043,4,2013
Allerdale Borough Council,12305,Premises,Corporate Property,Inspections and Services,11/07/2013,15149,165.00,PHS GROUP LTD,C00028,4,2013
Allerdale Borough Council,12305,Premises,Corporate Property,Inspections and Services,11/07/2013,15150,30.00,PHS GROUP LTD,C00028,4,2013
Allerdale Borough Council,12305,Premises,Corporate Property,Inspections and Services,11/07/2013,15151,45.00,PHS GROUP LTD,C00028,4,2013
Allerdale Borough Council,12305,Premises,Corporate Property,Inspections and Services,11/07/2013,15152,15.00,PHS GROUP LTD,C00028,4,2013
Allerdale Borough Council,15101,Supplies & Services,Corporate Property,Equipment Costs,11/07/2013,15153,31.10,ARCO LIMITED - CARLISLE,A01448,4,2013
Allerdale Borough Council,15101,Supplies & Services,Corporate Property,Equipment Costs,11/07/2013,15154,3.72,ARCO LIMITED - CARLISLE,A01448,4,2013
Allerdale Borough Council,15101,Supplies & Services,Public Convenience Cleaning,Equipment Costs,01/07/2013,15155,220.00,ARTIFAX,C00000,4,2013
Allerdale Borough Council,15101,Supplies & Services,Public Convenience Cleaning,Equipment Costs,11/07/2013,15156,-220.00,ARTIFAX,C00000,4,2013
Allerdale Borough Council,15813,Supplies & Services,Shared IT Services,Software Miscellaneous,15/07/2013,15157,30.00,THUS/DEMON PLC/ (VODAFONE),A00598,4,2013
Allerdale Borough Council,12408,Premises,Public Convenience Cleaning,Water & Sewage,15/07/2013,15158,372.74,UNITED UTILITIES,X00011,4,2013
Allerdale Borough Council,15804,Supplies & Services,Shared IT Services,Computer Data Lines B.T.,15/07/2013,15159,"3,721.81",BRITISH TELECOMMUNICATIONS,X00004,4,2013
Allerdale Borough Council,12408,Premises,Other Land & Buildings,Water & Sewage,16/07/2013,15160,209.78,UNITED UTILITIES ,X00011,4,2013
Allerdale Borough Council,12408,Premises,Public Convenience Cleaning,Water & Sewage,16/07/2013,15161,141.92,UNITED UTILITIES,X00011,4,2013
Allerdale Borough Council,12408,Premises,Corporate Property,Water & Sewage,16/07/2013,15162,83.01,UNITED UTILITIES,X00011,4,2013
Allerdale Borough Council,12402,Premises,Tenanted Properties,Electricity,16/07/2013,15163,15.77,EON ,X00016,4,2013
Allerdale Borough Council,12403,Premises,Tenanted Properties,Gas,16/07/2013,15164,16.98,EON,X00016,4,2013
Allerdale Borough Council,21150,Transfer Payments,Festivals & Events,General Grants,16/07/2013,15165,450.00,SILLOTH KITE FESTIVAL,M00219,4,2013
Allerdale Borough Council,20101,Third Party Payments,Public Convenience Cleaning,Cleansing Contract,11/07/2013,15166,800.00,LINDOW HALL,A00165,4,2013
Allerdale Borough Council,73102,Holding and Control Accounts,Allerdale House Tea Fund,Holding Accounts General - Expenditure,11/07/2013,15167,91.20,TELK LTD,A01670,4,2013
Allerdale Borough Council,20150,Third Party Payments,Museums,General Partnership Service Fees,11/07/2013,15168,"7,500.00",WORKINGTON HERITAGE GROUP LTD,A00339,4,2013
Allerdale Borough Council,15501,Supplies & Services,Human Resources Pay Group,Consultants Fees,11/07/2013,15169,800.00,HAYS,A00280,4,2013
Allerdale Borough Council,15101,Supplies & Services,Public Convenience Cleaning,Equipment Costs,11/07/2013,15170,53.64,WF HYGIENE & CLEANING SUPPLIES,A01794,4,2013
Allerdale Borough Council,15103,Supplies & Services,Parks and Grounds Maintenance,Purchase of Materials,12/07/2013,15171,489.40,ISS WATERERS LANDSCAPE,C00044,4,2013
Allerdale Borough Council,12305,Premises,Corporate Property,Inspections and Services,12/07/2013,15172,356.00,GILGEN DOOR SYSTEMS UK LTD,A00542,4,2013
Allerdale Borough Council,20102,Third Party Payments,Recycling,Horticulture (Obsolete),15/07/2013,15173,"4,327.80",FCC RECYCLING (UK) LTD (ALCO),A00185,4,2013
Allerdale Borough Council,12305,Premises,Other Land & Buildings,Inspections and Services,16/07/2013,15174,60.00,PFK PLC LAND AGENCY,A00954,4,2013
Allerdale Borough Council,15505,Supplies & Services,Planning and Development,Licences,16/07/2013,15175,29.00,CENTREMAPS,A00512,4,2013
Allerdale Borough Council,15401,Supplies & Services,Planning and Development,General Stationery,16/07/2013,15176,61.46,LAKELAND OFFICEPOINT LTD/INTEGRITY,A00069,4,2013
Allerdale Borough Council,14101,,Pest Control,Vehicle Leasing,16/07/2013,15177,"7,075.18",VOLKSWAGEN GROUP LEASING,A01239,4,2013
Allerdale Borough Council,14104,,Pest Control,Repairs & Maintenance,16/07/2013,15178,122.00,VOLKSWAGEN GROUP LEASING,A01239,4,2013
Allerdale Borough Council,12309,Premises,Corporate Property,Fire and Safety,16/07/2013,15179,129.06,ORIAN SOLUTIONS LTD,A01814,4,2013
Allerdale Borough Council,15808,Supplies & Services,Document Management Pay Group,Computer Consumables,18/07/2013,15180,579.90,INSIGHT DIRECT (UK) LTD,A00054,4,2013
Allerdale Borough Council,33101,Income,Domestic Waste,Charges for Services General Income,16/07/2013,15181,17.23,Redacted information - included personal information ,M00220,4,2013
Allerdale Borough Council,33101,Income,Domestic Waste,Charges for Services General Income,16/07/2013,15182,56.59,Redacted information - included personal information ,M00221,4,2013
Allerdale Borough Council,16302,Supplies & Services,Members Services,Room Hire,12/07/2013,15183,106.00,CARLISLE LEISURE LTD,A00136,4,2013
Allerdale Borough Council,10501,Employee Costs,Corporate Recruitment,Advertising Vacancies,16/07/2013,15184,520.00,CUMBRIA CC - 3C STUDIO,A00070,4,2013
Allerdale Borough Council,12101,Premises,Corporate Property,External Maintenance & Decoration,16/07/2013,15185,155.40,TRAVIS PERKINS,A00742,4,2013
Allerdale Borough Council,15101,Supplies & Services,Public Convenience Cleaning,Equipment Costs,16/07/2013,15186,741.80,INSTOCK (CHANDLERS),A00050,4,2013
Allerdale Borough Council,15101,Supplies & Services,Public Convenience Cleaning,Equipment Costs,16/07/2013,15187,24.36,JEWSON LIMITED,A01673,4,2013
Allerdale Borough Council,12306,Premises,Public Convenience Cleaning,Legionella Inspections and Services,16/07/2013,15188,575.57,RENTOKIL INITIAL UK LTD - WATERSAFE,A01790,4,2013
Allerdale Borough Council,72109,,9104,72109 - Post Payment Tax Account,19/07/2013,15189,976.00,INLAND REVENUE,X00023,4,2013
Allerdale Borough Council,15808,Supplies & Services,Document Management Pay Group,Computer Consumables,16/07/2013,15190,716.93,SUPPLIES TEAM SOLUTIONS,A01776,4,2013
Allerdale Borough Council,12403,Premises,Corporate Property,Gas,10/07/2013,15191,61.77,BRITISH GAS,X00006,4,2013
Allerdale Borough Council,12403,Premises,Corporate Property,Gas,10/07/2013,15192,300.20,BRITISH GAS,X00006,4,2013
Allerdale Borough Council,12403,Premises,Corporate Property,Gas,10/07/2013,15193,5.96,BRITISH GAS,X00006,4,2013
Allerdale Borough Council,12403,Premises,Corporate Property,Gas,10/07/2013,15194,115.56,BRITISH GAS,X00006,4,2013
Allerdale Borough Council,12403,Premises,Corporate Property,Gas,10/07/2013,15195,34.68,BRITISH GAS,X00006,4,2013
Allerdale Borough Council,12403,Premises,Corporate Property,Gas,10/07/2013,15196,88.90,BRITISH GAS,X00006,4,2013
Allerdale Borough Council,15903,Supplies & Services,Members Services,"Courses, Training & Seminars",11/07/2013,15197,"1,000.00",I&DEA,A00484,4,2013
Allerdale Borough Council,12402,Premises,Corporate Property,Electricity,18/07/2013,15198,"1,183.81",N POWER,X00015,4,2013
Allerdale Borough Council,12402,Premises,Other Land & Buildings,Electricity,18/07/2013,15199,118.80,N POWER,X00015,4,2013
Allerdale Borough Council,12402,Premises,Corporate Property,Electricity,18/07/2013,15200,642.93,N POWER,X00015,4,2013
Allerdale Borough Council,12402,Premises,Corporate Property,Electricity,18/07/2013,15201,379.10,N POWER,X00015,4,2013
Allerdale Borough Council,12402,Premises,Tenanted Properties,Electricity,18/07/2013,15202,6.14,N POWER,X00015,4,2013
Allerdale Borough Council,12402,Premises,Public Convenience Cleaning,Electricity,18/07/2013,15203,12.34,N POWER,X00015,4,2013
Allerdale Borough Council,12402,Premises,Public Convenience Cleaning,Electricity,18/07/2013,15204,45.84,N POWER,X00015,4,2013
Allerdale Borough Council,12402,Premises,Corporate Property,Electricity,18/07/2013,15205,"1,341.85",N POWER,X00015,4,2013
Allerdale Borough Council,15811,Supplies & Services,Shared IT Services,Software Maintenance,18/06/2013,15206,"13,395.00",ASTUN TECHNOLOGY LIMITED,A01234,4,2013
Allerdale Borough Council,15405,Supplies & Services,Finance and Accounting Pay Group,Use of External Printers,11/07/2013,15207,411.95,HAGUE COMPUTER SUPPLIES LTD,A01690,4,2013
Allerdale Borough Council,15810,Supplies & Services,Shared IT Services,Software Licences,12/07/2013,15208,222.89,PHOENIX SOFTWARE LTD,A00229,4,2013
Allerdale Borough Council,10601,Employee Costs,Town Centre Management,External Courses & Seminar Fees,12/07/2013,15209,360.00,ASSOCIATION OF TOWN CENTRE MANAGERS,A01088,4,2013
Allerdale Borough Council,15501,Supplies & Services,Banking and Interest,Consultants Fees,16/07/2013,15210,"10,000.00",SECTOR TREASURY SERVICES LTD,A01818,4,2013
Allerdale Borough Council,14150,,Gates Travel,General-Council Vehicles (Non-Capital),16/07/2013,15211,"1,393.36",GATES TRAVEL,A01525,4,2013
Allerdale Borough Council,12303,Premises,Corporate Property,Window Cleaning,18/07/2013,15212,234.85,J A LEE WINDOWS,A00051,4,2013
Allerdale Borough Council,12203,Premises,Public Convenience Cleaning,Plumbing and Heating Maintenance,18/07/2013,15213,685.00,Redacted information - included personal information ,C00008,4,2013
Allerdale Borough Council,15501,Supplies & Services,Human Resources Pay Group,Consultants Fees,18/07/2013,15214,800.00,HAYS,A00280,4,2013
Allerdale Borough Council,15550,Supplies & Services,Carnegie Theatre,General-Service Related Fees,25/06/2013,15215,4.92,TICKETS.COM LTD,A00371,4,2013
Allerdale Borough Council,12350,Premises,Camping & Caravan Sites,General-Facilities Management,19/07/2013,15216,"11,000.00",KESWICK TOWN COUNCIL,A00253,4,2013
Allerdale Borough Council,51101,Capital Expenditure,KMAG Enhancement Project,External Contractor Payments (Capital),19/07/2013,15217,"1,040.90",CAPITA (TREE/HEDGEROWS),A00683,4,2013
Allerdale Borough Council,16350,Supplies & Services,Finance and Accounting Pay Group,Miscellaneous Expenses,22/07/2013,15218,520.92,YOUR HOUSING GROUP ADMIN,M00228,4,2013
Allerdale Borough Council,32106,Income,Elections,Publications Income,22/07/2013,15219,29.49,Redacted information - included personal information ,M00229,4,2013
Allerdale Borough Council,15603,Supplies & Services,Document Management Pay Group,Franking Machine Costs,10/07/2013,15220,300.00,FP EXECUTIVE AGENCY LTD,A00733,4,2013
Allerdale Borough Council,20150,Third Party Payments,Mortgage Repossession Support,General Partnership Service Fees,12/07/2013,15221,"1,250.00",CITIZENS ADVICE BUREAU,A01181,4,2013
Allerdale Borough Council,20150,Third Party Payments,Mortgage Repossession Support,General Partnership Service Fees,12/07/2013,15222,"1,250.00",CITIZENS ADVICE BUREAU,A01181,4,2013
Allerdale Borough Council,15550,Supplies & Services,Tenanted Properties,General-Service Related Fees,18/07/2013,15223,150.00,PFK PLC LAND AGENCY,A00954,4,2013
Allerdale Borough Council,15550,Supplies & Services,Industrial Units,General-Service Related Fees,18/07/2013,15224,150.00,PFK PLC LAND AGENCY,A00954,4,2013
Allerdale Borough Council,15502,Supplies & Services,Legal Services,Land Registry Fees,22/07/2013,15225,35.00,HM LAND REGISTRY,A00505,4,2013
Allerdale Borough Council,34150,Income,Planning and Development,General Recovery of Other Costs-Income,18/07/2013,15226,12.50,BUTTERWORTHS,M00041,4,2013
Allerdale Borough Council,33112,Income,Planning and Development,Planning Fees Income,18/07/2013,15227,575.00,D HARRISON & G HOUGHTON,M00227,4,2013
Allerdale Borough Council,10502,Employee Costs,Corporate Recruitment,Interview Expenses,19/07/2013,15228,109.80,Redacted information - included personal information ,M00226,4,2013
Allerdale Borough Council,33150,Income,Street Cleansing,Other Fees Income,19/07/2013,15229,60.00,Redacted information - included personal information ,M00225,4,2013
Allerdale Borough Council,33112,Income,Planning and Development,Planning Fees Income,18/07/2013,15230,122.00,Redacted information - included personal information ,M00224,4,2013
Allerdale Borough Council,33112,Income,Planning and Development,Planning Fees Income,18/07/2013,15231,110.00,V G ENERGY LTD,M00223,4,2013
Allerdale Borough Council,16150,Supplies & Services,Solway Wetlands Project,General Promotions,17/07/2013,15232,126.00,Redacted information - included personal information ,M00222,4,2013
Allerdale Borough Council,12308,Premises,Homelessness,Domestic Consumables,16/07/2013,15233,40.09,ALLERDALE BOROUGH COUNCIL,X00034,4,2013
Allerdale Borough Council,16150,Supplies & Services,Solway Wetlands Project,General Promotions,17/07/2013,15234,100.00,Redacted information - included personal information ,M00203,4,2013
Allerdale Borough Council,16350,Supplies & Services,Homelessness,Miscellaneous Expenses,23/07/2013,15235,390.00,ATLAS DEVELOPMENTS,M00230,4,2013
Allerdale Borough Council,15501,Supplies & Services,Homelessness,Consultants Fees,15/07/2013,15236,44.00,Redacted information - included personal information ,A00418,4,2013
Allerdale Borough Council,16100,Supplies & Services,Communications and Marketing,Budget-Advertising and Promotions,16/07/2013,15237,500.00,CUMBRIAN NEWSPAPERS LIMITED,A00869,4,2013
Allerdale Borough Council,15601,Supplies & Services,Communications and Marketing,Postage,02/07/2013,15238,7.91,K&R BADGES LIMITED,A01328,4,2013
Allerdale Borough Council,20102,Third Party Payments,Recycling,Horticulture (Obsolete),10/07/2013,15239,124.50,THOMPSONS PLANT HIRE LTD,A00262,4,2013
Allerdale Borough Council,20102,Third Party Payments,Recycling,Horticulture (Obsolete),10/07/2013,15240,"1,715.50",THOMPSONS PLANT HIRE LTD,A00262,4,2013
Allerdale Borough Council,15301,Supplies & Services,Communications and Marketing,Uniforms,12/07/2013,15241,3.37,K&R BADGES LIMITED,A01328,4,2013
Allerdale Borough Council,20102,Third Party Payments,Recycling,Horticulture (Obsolete),16/07/2013,15242,838.56,THOMPSONS PLANT HIRE LTD,A00262,4,2013
Allerdale Borough Council,20102,Third Party Payments,Recycling,Horticulture (Obsolete),16/07/2013,15243,"3,613.50",THOMPSONS PLANT HIRE LTD,A00262,4,2013
Allerdale Borough Council,20102,Third Party Payments,Recycling,Horticulture (Obsolete),16/07/2013,15244,53.50,THOMPSONS PLANT HIRE LTD,A00262,4,2013
Allerdale Borough Council,15808,Supplies & Services,Document Management Pay Group,Computer Consumables,19/07/2013,15245,263.51,STORM TECHNOLOGIES,A01018,4,2013
Allerdale Borough Council,54105,Capital Expenditure,Disabled Facilities Grants,Grants  Private Individuals (Capital),17/07/2013,15246,"3,780.00",HANDICARE ACCESSIBILITY LTD,X00211,4,2013
Allerdale Borough Council,54105,Capital Expenditure,Disabled Facilities Grants,Grants  Private Individuals (Capital),17/07/2013,15247,"2,212.25",MAYSON BROS LTD,X00132,4,2013
Allerdale Borough Council,54105,Capital Expenditure,Disabled Facilities Grants,Grants  Private Individuals (Capital),17/07/2013,15248,"2,730.00",TOP NOTCH CONTRACTORS LTD,X00165,4,2013
Allerdale Borough Council,54105,Capital Expenditure,Disabled Facilities Grants,Grants  Private Individuals (Capital),17/07/2013,15249,"3,306.40",TOP NOTCH CONTRACTORS LTD,X00165,4,2013
Allerdale Borough Council,15201,Supplies & Services,Leaders Services,Entertainment Of Visitors,22/07/2013,15250,61.47,ALLERDALE BOROUGH COUNCIL,X00034,4,2013
Allerdale Borough Council,15501,Supplies & Services,Legal Services,Consultants Fees,08/07/2013,15251,185.40,HSBC CARD SERVICES,X00000,4,2013
Allerdale Borough Council,12201,Premises,Corporate Property,Internal Maintenance,23/07/2013,15252,780.00,Redacted information - included personal information ,A01607,4,2013
Allerdale Borough Council,12103,Premises,Coastal Protection and Inland Flooding,Grounds Maintenance,23/07/2013,15253,140.00,Redacted information - included personal information ,C00008,4,2013
Allerdale Borough Council,10250,Employee Costs,Economic Regeneration,General-Employee Related Expenses,23/07/2013,15254,20.00,FIRPRESS PRINTERS,A00063,4,2013
Allerdale Borough Council,15903,Supplies & Services,Members Services,"Courses, Training & Seminars",23/07/2013,15255,63.00,MAGGIES BAKERY,A01685,4,2013
Allerdale Borough Council,15501,Supplies & Services,Human Resources Pay Group,Consultants Fees,23/07/2013,15256,350.00,THOMPSONS SOLICITORS,A00675,4,2013
Allerdale Borough Council,15501,Supplies & Services,Building Control,Consultants Fees,23/07/2013,15257,42.00,PK ELECTRICAL (CARLISLE) LTD,A00778,4,2013
Allerdale Borough Council,15501,Supplies & Services,Building Control,Consultants Fees,23/07/2013,15258,42.00,PK ELECTRICAL (CARLISLE) LTD,A00778,4,2013
Allerdale Borough Council,15903,Supplies & Services,Members Services,"Courses, Training & Seminars",23/07/2013,15259,5.64,K&R BADGES LIMITED,A01328,4,2013
Allerdale Borough Council,12101,Premises,Parks and Grounds Maintenance,External Maintenance & Decoration,04/06/2013,15261,80.00,ISS WATERERS LANDSCAPE,C00044,4,2013
Allerdale Borough Council,70104,VAT,Input VAT,VAT - 20%,18/07/2013,15262,375.32,ROSSENDALES LTD,A00964,4,2013
Allerdale Borough Council,70104,VAT,Input VAT,VAT - 20%,18/07/2013,15263,6.16,ROSSENDALES LTD,A00964,4,2013
Allerdale Borough Council,70104,VAT,Input VAT,VAT - 20%,18/07/2013,15264,51.42,ROSSENDALES LTD,A00964,4,2013
Allerdale Borough Council,70104,VAT,Input VAT,VAT - 20%,18/07/2013,15265,0.16,ROSSENDALES LTD,A00964,4,2013
Allerdale Borough Council,70104,VAT,Input VAT,VAT - 20%,18/07/2013,15266,167.39,ROSSENDALES LTD,A00964,4,2013
Allerdale Borough Council,70104,VAT,Input VAT,VAT - 20%,18/07/2013,15267,264.78,ROSSENDALES LTD,A00964,4,2013
Allerdale Borough Council,70104,VAT,Input VAT,VAT - 20%,18/07/2013,15268,163.54,ROSSENDALES LTD,A00964,4,2013
Allerdale Borough Council,70104,VAT,Input VAT,VAT - 20%,18/07/2013,15269,267.62,ROSSENDALES LTD,A00964,4,2013
Allerdale Borough Council,70104,VAT,Input VAT,VAT - 20%,18/07/2013,15270,63.34,ROSSENDALES LTD,A00964,4,2013
Allerdale Borough Council,70104,VAT,Input VAT,VAT - 20%,18/07/2013,15271,45.50,ROSSENDALES LTD,A00964,4,2013
Allerdale Borough Council,70104,VAT,Input VAT,VAT - 20%,18/07/2013,15272,6.00,ROSSENDALES LTD,A00964,4,2013
Allerdale Borough Council,70104,VAT,Input VAT,VAT - 20%,18/07/2013,15273,41.66,ROSSENDALES LTD,A00964,4,2013
Allerdale Borough Council,70104,VAT,Input VAT,VAT - 20%,18/07/2013,15274,0.16,ROSSENDALES LTD,A00964,4,2013
Allerdale Borough Council,70104,VAT,Input VAT,VAT - 20%,18/07/2013,15275,33.16,ROSSENDALES LTD,A00964,4,2013
Allerdale Borough Council,70104,VAT,Input VAT,VAT - 20%,18/07/2013,15276,311.58,JACOBS,A00495,4,2013
Allerdale Borough Council,12408,Premises,Public Convenience Cleaning,Water & Sewage,19/07/2013,15277,7.65,UNITED UTILITIES,X00011,4,2013
Allerdale Borough Council,15703,Supplies & Services,Silloth TIC,Call Charges,19/07/2013,15278,118.32,BRITISH TELECOMMUNICATIONS,X00004,4,2013
Allerdale Borough Council,12305,Premises,Public Convenience Cleaning,Inspections and Services,23/07/2013,15279,391.80,PHS GROUP LTD,C00028,4,2013
Allerdale Borough Council,12305,Premises,Public Convenience Cleaning,Inspections and Services,23/07/2013,15280,-391.80,PHS GROUP LTD,C00028,4,2013
Allerdale Borough Council,12408,Premises,Corporate Property,Water & Sewage,23/07/2013,15281,283.06,UNITED UTILITIES ,X00011,4,2013
Allerdale Borough Council,12408,Premises,Corporate Property,Water & Sewage,23/07/2013,15282,17.62,UNITED UTILITIES,X00011,4,2013
Allerdale Borough Council,12402,Premises,Corporate Property,Electricity,23/07/2013,15283,343.04,BRITISH GAS,X00006,4,2013
Allerdale Borough Council,15101,Supplies & Services,Health and Safety,Equipment Costs,11/06/2013,15284,77.46,POSTURITE (UK) LTD,A00336,4,2013
Allerdale Borough Council,15402,Supplies & Services,Customer Contact Centre,Photocopier Charges,11/07/2013,15285,56.06,KONICA MINOLTA BUSINESS SOLUTIONS UK LTD,A01556,4,2013
Allerdale Borough Council,15514,Supplies & Services,Cockrock Ticket Sales,Public Entertainment,22/07/2013,15286,"13,380.58",COCKERMOUTH ROCK FESTIVAL LTD,A01293,4,2013
Allerdale Borough Council,33121,Income,Off-street - Owned,Excess Charges - Car Parks Income,23/07/2013,15287,25.00,Redacted information - included personal information ,M00231,4,2013
Allerdale Borough Council,21150,Transfer Payments,Festivals & Events,General Grants,23/07/2013,15288,500.00,SILLOTH VINTAGE RALLEY LIMITED,M00232,4,2013
Allerdale Borough Council,15509,Supplies & Services,Elections,Election Costs,23/07/2013,15289,44.23,Redacted information - included personal information ,M00211,4,2013
Allerdale Borough Council,54105,Capital Expenditure,Disabled Facilities Grants,Grants  Private Individuals (Capital),24/07/2013,15290,"3,420.00",TOP NOTCH CONTRACTORS LTD,X00165,4,2013
Allerdale Borough Council,15509,Supplies & Services,Elections,Election Costs,23/07/2013,15291,279.93,HMRC CUMBERNAULD,A00475,4,2013
Allerdale Borough Council,15602,Supplies & Services,Elections,Business Reply Licences,18/07/2013,15292,161.68,ROYAL MAIL LETTERS,X00021,4,2013
Allerdale Borough Council,15702,Supplies & Services,Corporate Property,Line Rentals,19/07/2013,15293,51.95,BRITISH TELECOMMUNICATIONS,X00004,4,2013
Allerdale Borough Council,15702,Supplies & Services,Corporate Property,Line Rentals,19/07/2013,15294,60.00,BRITISH TELECOMMUNICATIONS,X00004,4,2013
Allerdale Borough Council,16150,Supplies & Services,Solway Wetlands Project,General Promotions,19/07/2013,15295,150.00,CUMBRIA WILDLIFE TRUST LTD,A01810,4,2013
Allerdale Borough Council,15602,Supplies & Services,Elections,Business Reply Licences,19/07/2013,15296,105.72,ROYAL MAIL LETTERS,X00021,4,2013
Allerdale Borough Council,15903,Supplies & Services,Other Land & Buildings,"Courses, Training & Seminars",19/07/2013,15297,85.00,I&DEA,A00484,4,2013
Allerdale Borough Council,15501,Supplies & Services,Environmental Protection,Consultants Fees,10/07/2013,15298,431.50,UNITED UTILITIES PLC,A01657,4,2013
Allerdale Borough Council,16150,Supplies & Services,Sports Development,General Promotions,23/07/2013,15299,180.00,FIRPRESS PRINTERS,A00063,4,2013
Allerdale Borough Council,10600,Employee Costs,Training,Budget-Training,23/07/2013,15300,200.00,COCKERMOUTH TOWN COUNCIL,A00586,4,2013
Allerdale Borough Council,10600,Employee Costs,Training,Budget-Training,23/07/2013,15301,400.00,COCKERMOUTH TOWN COUNCIL,A00586,4,2013
Allerdale Borough Council,99902,Suspense Acc,Other Income Suspense Account,Suspense - Income Not Yet Identified,24/07/2013,15302,270.54,BROOKSIDE PRODUCTS,M00233,4,2013
Allerdale Borough Council,33112,Income,Planning and Development,Planning Fees Income,23/07/2013,15320,98.00,ASPATRIA FARMERS LIMITED,A00736,4,2013
Allerdale Borough Council,33112,Income,Planning and Development,Planning Fees Income,23/07/2013,15321,170.00,ASPATRIA RUGBY UNION FOOTBALL CLUB LTD,M00234,4,2013
Allerdale Borough Council,33112,Income,Planning and Development,Planning Fees Income,24/07/2013,15322,195.00,Redacted information - included personal information ,M00235,4,2013
Allerdale Borough Council,33112,Income,Planning and Development,Planning Fees Income,23/07/2013,15323,585.00,THOMPSONS PLANT HIRE LIMITED,M00236,4,2013
Allerdale Borough Council,15501,Supplies & Services,Environmental Protection,Consultants Fees,12/07/2013,15324,976.25,Redacted information - included personal information ,A00206,4,2013
Allerdale Borough Council,15813,Supplies & Services,Banking and Interest,Software Miscellaneous,16/07/2013,15325,750.00,TRAFFORD COUNCIL (SPENDPRO),A01812,4,2013
Allerdale Borough Council,15401,Supplies & Services,Chief Executive,General Stationery,23/07/2013,15326,12.00,FIRPRESS PRINTERS,A00063,4,2013
Allerdale Borough Council,15501,Supplies & Services,Building Control,Consultants Fees,23/07/2013,15327,42.00,PK ELECTRICAL (CARLISLE) LTD,A00778,4,2013
Allerdale Borough Council,15501,Supplies & Services,Building Control,Consultants Fees,23/07/2013,15328,168.00,PK ELECTRICAL (CARLISLE) LTD,A00778,4,2013
Allerdale Borough Council,15501,Supplies & Services,Environmental Protection,Consultants Fees,24/07/2013,15329,"1,079.38",OSBORNE RICHARDSON,A00206,4,2013
Allerdale Borough Council,12203,Premises,Public Convenience Cleaning,Plumbing and Heating Maintenance,24/07/2013,15330,908.00,Redacted information - included personal information ,C00008,4,2013
Allerdale Borough Council,15101,Supplies & Services,Recycling,Equipment Costs,24/07/2013,15331,"18,580.63",BPI RECYCLED PRODUCTS,A00318,4,2013
Allerdale Borough Council,12309,Premises,Corporate Property,Fire and Safety,24/07/2013,15332,70.00,FCC ENVIRONMENT SERVICES (FOCSA),A00085,4,2013
Allerdale Borough Council,10401,Employee Costs,IT - New Initiatives,Agency Staff Costs,26/07/2013,15333,"1,300.00",HAYS,A00280,4,2013
Allerdale Borough Council,16150,Supplies & Services,Solway Wetlands Project,General Promotions,26/07/2013,15334,805.00,ASKHAM BRYAN COLLEGE,A01841,4,2013
Allerdale Borough Council,15903,Supplies & Services,Benefits,"Courses, Training & Seminars",26/07/2013,15335,585.00,ZEBRA TRAINING SERVICES LIMITED,A01801,4,2013
Allerdale Borough Council,10601,Employee Costs,Training,External Courses & Seminar Fees,26/07/2013,15336,"3,500.00",LEACH CONSULTING & ASSOCIATES LTD,A01444,4,2013
Allerdale Borough Council,15400,Supplies & Services,Benefits,"Budget-Printing,Stationery & Office Supp",26/07/2013,15337,74.80,CARLISLE CITY COUNCIL,A00161,4,2013
Allerdale Borough Council,16003,Supplies & Services,Customer Services Pay Group,Security of Cash Movements,26/07/2013,15338,"1,086.12",SECURITY PLUS LIMITED,A00503,4,2013
Allerdale Borough Council,15501,Supplies & Services,Homelessness,Consultants Fees,26/07/2013,15339,50.00,SOLWAY MEDICAL SERVICES,A00588,4,2013
Allerdale Borough Council,16101,Supplies & Services,Planning and Development,Statutory Notices,23/07/2013,15340,502.03,CUMBRIA CC - 3C STUDIO,A00070,4,2013
Allerdale Borough Council,16101,Supplies & Services,Planning and Development,Statutory Notices,23/07/2013,15341,552.88,CUMBRIA CC - 3C STUDIO,A00070,4,2013
Allerdale Borough Council,12304,Premises,Recycling,Trade Refuse,02/07/2013,15342,"7,800.00",PLASTIC OMNIUM URBAN SYSTEMS LTD,A00159,4,2013
Allerdale Borough Council,12304,Premises,Recycling,Trade Refuse,05/07/2013,15343,721.60,PLASTIC OMNIUM URBAN SYSTEMS LTD,A00159,4,2013
Allerdale Borough Council,12304,Premises,Trade Waste,Trade Refuse,12/07/2013,15344,840.00,EGBERT H TAYLOR & COMPANY LTD,A01706,4,2013
Allerdale Borough Council,20102,Third Party Payments,Recycling,Horticulture (Obsolete),15/07/2013,15345,"3,026.06",FCC RECYCLING (UK) LTD (ALCO),A00185,4,2013
Allerdale Borough Council,10401,Employee Costs,IT - New Initiatives,Agency Staff Costs,16/07/2013,15346,"1,300.00",HAYS,A00280,4,2013
Allerdale Borough Council,15100,Supplies & Services,Pest Control,"Budget-Equipment, Furniture & Materials",19/07/2013,15347,581.16,KILLGERM CHEMICALS LTD,A00361,4,2013
Allerdale Borough Council,20102,Third Party Payments,Recycling,Horticulture (Obsolete),19/07/2013,15348,"4,292.08",FCC RECYCLING (UK) LTD (ALCO),A00185,4,2013
Allerdale Borough Council,20102,Third Party Payments,Recycling,Horticulture (Obsolete),23/07/2013,15349,60.50,THOMPSONS PLANT HIRE LTD,A00262,4,2013
Allerdale Borough Council,20102,Third Party Payments,Recycling,Horticulture (Obsolete),23/07/2013,15350,"2,416.50",THOMPSONS PLANT HIRE LTD,A00262,4,2013
Allerdale Borough Council,15903,Supplies & Services,Members Services,"Courses, Training & Seminars",16/07/2013,15351,117.61,ENTERPRISE RENT A CAR,A01367,4,2013
Allerdale Borough Council,10202,Employee Costs,Human Resources Pay Group,Medical Screening,26/07/2013,15352,424.36,WELLWORK LTD,A00029,4,2013
Allerdale Borough Council,15500,Supplies & Services,Food and Occupational Health,Budget-Services,26/07/2013,15353,235.00,MP MARINE LTD,A00113,4,2013
Allerdale Borough Council,14104,,Street Cleansing,Repairs & Maintenance,29/07/2013,15354,77.64,HI-Q TYRESERVICES,A00313,4,2013
Allerdale Borough Council,15810,Supplies & Services,Shared IT Services,Software Licences,29/07/2013,15355,"1,380.00",CRANFIELD UNIVERSITY,A01644,4,2013
Allerdale Borough Council,15501,Supplies & Services,Planning and Development,Consultants Fees,29/07/2013,15356,"4,244.65",WARDELL ARMSTRONG LLP,A01676,4,2013
Allerdale Borough Council,15810,Supplies & Services,Shared IT Services,Software Licences,29/07/2013,15357,565.00,OTECH LTD,A00141,4,2013
Allerdale Borough Council,15203,Supplies & Services,Solway Coast AONB Core Funding,Catering Costs and Consumables,29/07/2013,15358,22.47,VIKING DIRECT,A00828,4,2013
Allerdale Borough Council,15506,Supplies & Services,Legal Services,Professional Services,29/07/2013,15359,225.00,KINGS CHAMBERS,A00348,4,2013
Allerdale Borough Council,15401,Supplies & Services,Solway Coast AONB Core Funding,General Stationery,29/07/2013,15360,68.96,VIKING DIRECT,A00828,4,2013
Allerdale Borough Council,15101,Supplies & Services,Public Convenience Cleaning,Equipment Costs,29/07/2013,15361,48.72,JEWSON LIMITED,A01673,4,2013
Allerdale Borough Council,70104,VAT,Input VAT,VAT - 20%,15/07/2013,15362,12.86,BRITISH TELECOMMUNICATIONS,X00004,4,2013
Allerdale Borough Council,12405,Premises,Enterprise Coaches,Rentals and Lease Charges,19/07/2013,15363,23.74,BRITISH GAS,X00006,4,2013
Allerdale Borough Council,10302,Employee Costs,Finance and Accounting Pay Group,Past Service Costs,19/07/2013,15364,"1,375.00",YOUR PENSION SERVICE,A01465,4,2013
Allerdale Borough Council,15703,Supplies & Services,Corporate Property,Call Charges,24/07/2013,15365,492.88,BRITISH TELECOMMUNICATIONS,X00004,4,2013
Allerdale Borough Council,15602,Supplies & Services,Elections,Business Reply Licences,24/07/2013,15366,103.24,ROYAL MAIL LETTERS,X00021,4,2013
Allerdale Borough Council,15704,Supplies & Services,Shared IT Services,Mobile Phones,26/07/2013,15367,"1,036.08",VODAFONE,A00551,4,2013
Allerdale Borough Council,12304,Premises,Recycling,Trade Refuse,02/07/2013,15368,"10,678.40",PLASTIC OMNIUM URBAN SYSTEMS LTD,A00159,4,2013
Allerdale Borough Council,15803,Supplies & Services,Shared IT Services,Hardware Purchase,26/07/2013,15369,"1,943.65",PROBRAND,A00040,4,2013
Allerdale Borough Council,15514,Supplies & Services,Carnegie Theatre,Public Entertainment,26/07/2013,15370,891.59,THE DIXON AGENCY,A01453,4,2013
Allerdale Borough Council,15903,Supplies & Services,Members Services,"Courses, Training & Seminars",26/07/2013,15371,255.75,AL'S KITCHEN,A00187,4,2013
Allerdale Borough Council,99902,Suspense Acc,Other Income Suspense Account,Suspense - Income Not Yet Identified,29/07/2013,15372,100.00,CUMBRIA CC - GENERAL,A00066,4,2013
Allerdale Borough Council,54105,Capital Expenditure,Disabled Facilities Grants,Grants  Private Individuals (Capital),29/07/2013,15373,"3,170.00",PRO-TEC SYSTEMS,C00026,4,2013
Allerdale Borough Council,54105,Capital Expenditure,Disabled Facilities Grants,Grants  Private Individuals (Capital),29/07/2013,15374,"3,080.00",BLUE FLAME SERVICES LTD,X00213,4,2013
Allerdale Borough Council,10250,Employee Costs,Chief Executive,General-Employee Related Expenses,15/07/2013,15375,164.10,BARCLAYCARD COMMERCIAL,X00207,4,2013
Allerdale Borough Council,15403,Supplies & Services,Housing Services Pay Group,Publications and Periodicals,15/06/2013,15376,336.44,BARCLAYCARD COMMERCIAL,X00207,4,2013
Allerdale Borough Council,14102,,Parking Services Pay Group,Vehicle Excise Licences,15/07/2013,15377,408.50,BARCLAYCARD COMMERCIAL,X00207,4,2013
Allerdale Borough Council,33104,Income,Bereavement Services,Cemetery Granting of Burial Right Income,29/07/2013,15378,225.00,Redacted information - included personal information ,M00237,4,2013
Allerdale Borough Council,33101,Income,Domestic Waste,Charges for Services General Income,25/07/2013,15379,56.59,Redacted information - included personal information ,M00238,4,2013
Allerdale Borough Council,15550,Supplies & Services,Out of Hours Telephones,General-Service Related Fees,10/07/2013,15380,541.35,SITEXORBIS LIMITED,A00679,4,2013
Allerdale Borough Council,15550,Supplies & Services,Out of Hours Telephones,General-Service Related Fees,10/07/2013,15381,7.90,SITEXORBIS LIMITED,A00679,4,2013
Allerdale Borough Council,10401,Employee Costs,Licensing Pay Group,Agency Staff Costs,11/07/2013,15382,384.00,VENN GROUP,A01836,4,2013
Allerdale Borough Council,10401,Employee Costs,Licensing Pay Group,Agency Staff Costs,12/07/2013,15383,384.00,VENN GROUP,A01836,4,2013
Allerdale Borough Council,15507,Supplies & Services,Land Charges Service,Searches,16/07/2013,15384,"1,337.50",LAKE DISTRICT NATIONAL PARK AUTHORITY,A00415,4,2013
Allerdale Borough Council,10401,Employee Costs,Licensing Pay Group,Agency Staff Costs,18/07/2013,15385,394.42,ADECCO RECRUITMENT,A00188,4,2013
Allerdale Borough Council,10401,Employee Costs,Licensing Pay Group,Agency Staff Costs,19/07/2013,15386,394.42,ADECCO RECRUITMENT,A00188,4,2013
Allerdale Borough Council,15301,Supplies & Services,Parking Services Pay Group,Uniforms,23/07/2013,15387,45.85,ARCO LIMITED - CARLISLE,A01448,4,2013
Allerdale Borough Council,16150,Supplies & Services,Solway Wetlands Project,General Promotions,29/07/2013,15388,79.05,FINDEL EDUCATION LTD,A01767,4,2013
Allerdale Borough Council,10401,Employee Costs,Licensing Pay Group,Agency Staff Costs,26/07/2013,15389,384.00,VENN GROUP,A01836,4,2013
Allerdale Borough Council,51101,Capital Expenditure,KMAG Enhancement Project,External Contractor Payments (Capital),29/07/2013,15390,665.00,BOX CLEVER STORAGE,A00880,4,2013
Allerdale Borough Council,12103,Premises,Parks and Grounds Maintenance,Grounds Maintenance,29/07/2013,15391,"2,144.70",ISS WATERERS LANDSCAPE,C00044,4,2013
Allerdale Borough Council,16150,Supplies & Services,Solway Wetlands Project,General Promotions,03/06/2013,15392,"3,480.75",THE LIMECRETE COMPANY LIMITED,C00125,4,2013
Allerdale Borough Council,16150,Supplies & Services,Solway Wetlands Project,General Promotions,31/05/2013,15393,225.00,REAYS COACHES LTD,A01280,4,2013
Allerdale Borough Council,15405,Supplies & Services,Communications and Marketing,Use of External Printers,01/07/2013,15395,"4,552.00",FIRPRESS PRINTERS,A00063,4,2013
Allerdale Borough Council,15405,Supplies & Services,Communications and Marketing,Use of External Printers,01/07/2013,15396,"2,265.00",FIRPRESS PRINTERS,A00063,4,2013
Allerdale Borough Council,15808,Supplies & Services,Off-street - Owned,Computer Consumables,10/07/2013,15397,263.54,COBALT TELEPHONE TECHNOLOGY,A01008,4,2013
Allerdale Borough Council,12300,Premises,Crime Prevention,Budget-Facilities Management,11/07/2013,15398,636.50,BRITISH TELECOMMUNICATIONS,X00004,4,2013
Allerdale Borough Council,12300,Premises,Crime Prevention,Budget-Facilities Management,15/07/2013,15399,102.81,EON,X00016,4,2013
Allerdale Borough Council,12300,Premises,Crime Prevention,Budget-Facilities Management,15/07/2013,15400,"1,591.13",BT REDCARE,A00363,4,2013
Allerdale Borough Council,20150,Third Party Payments,Off-street - Managed,General Partnership Service Fees,16/07/2013,15401,508.51,MARYPORT DEVELOPMENTS LTD,A00186,4,2013
Allerdale Borough Council,15601,Supplies & Services,Elections,Postage,29/07/2013,15402,711.59,ROYAL MAIL LETTERS,X00021,4,2013
Allerdale Borough Council,12408,Premises,Corporate Property,Water & Sewage,29/07/2013,15403,609.94,UNITED UTILITIES ,X00011,4,2013
Allerdale Borough Council,12408,Premises,Tenanted Properties,Water & Sewage,29/07/2013,15404,479.62,UNITED UTILITIES,X00011,4,2013
Allerdale Borough Council,12408,Premises,Corporate Property,Water & Sewage,29/07/2013,15405,103.64,UNITED UTILITIES ,X00011,4,2013
Allerdale Borough Council,70104,VAT,VAT Control Account,VAT - 20%,29/07/2013,15406,323.20,KENNEDYS LAW LLP,A01842,4,2013
Allerdale Borough Council,12408,Premises,Corporate Property,Water & Sewage,29/07/2013,15407,142.36,UNITED UTILITIES ,X00011,4,2013
Allerdale Borough Council,12408,Premises,Tenanted Properties,Water & Sewage,29/07/2013,15408,24.74,UNITED UTILITIES,X00011,4,2013
Allerdale Borough Council,72101,Holding and Control Accounts,Derwent and Solway,Expenditure,22/07/2013,15409,"5,772.37",DERWENT & SOLWAY,A00219,4,2013
Allerdale Borough Council,15502,Supplies & Services,Legal Services,Land Registry Fees,29/07/2013,15410,33.00,HM LAND REGISTRY,A00505,4,2013
Allerdale Borough Council,16350,Supplies & Services,Arts Development,Miscellaneous Expenses,15/06/2013,15411,268.00,BARCLAYCARD COMMERCIAL,X00207,4,2013
Allerdale Borough Council,10401,Employee Costs,IT - New Initiatives,Agency Staff Costs,16/07/2013,15412,"1,462.50",HAYS,A00280,4,2013
Allerdale Borough Council,10401,Employee Costs,Licensing Pay Group,Agency Staff Costs,19/07/2013,15413,384.00,VENN GROUP,A01836,4,2013
Allerdale Borough Council,15803,Supplies & Services,Shared IT Services,Hardware Purchase,29/07/2013,15414,40.50,PROBRAND,A00040,4,2013
Allerdale Borough Council,10401,Employee Costs,Licensing Pay Group,Agency Staff Costs,03/04/2013,15415,660.00,SAFE AND SOUND SECURITY (CUMBRIA) LTD,A01831,4,2013
Allerdale Borough Council,10401,Employee Costs,Licensing Pay Group,Agency Staff Costs,28/05/2013,15416,570.00,SAFE AND SOUND SECURITY (CUMBRIA) LTD,A01831,4,2013
Allerdale Borough Council,15401,Supplies & Services,Solway Coast AONB Core Funding,General Stationery,29/07/2013,15417,-68.96,VIKING DIRECT,A00828,4,2013
Allerdale Borough Council,15401,Supplies & Services,Solway Coast AONB Core Funding,General Stationery,29/07/2013,15418,68.96,VIKING DIRECT,A00828,4,2013
Allerdale Borough Council,14101,,Shared IT Services Pay Group,Vehicle Leasing,13/08/2013,15419,189.00,ARNOLD CLARK FINANCE LIMITED,A01781,4,2013
Allerdale Borough Council,14101,,Shared IT Services Pay Group,Vehicle Leasing,13/07/2013,15420,189.00,ARNOLD CLARK FINANCE LIMITED,A01781,4,2013
Allerdale Borough Council,75103,Holding and Control Accounts,Payroll Suspense Account,PAYROLL July 13 Travel & Subsistence  ,03/07/2013,,"16,225.62",INLAND REVENUE - DIRECT,X00038,4,2013































































































